[Event "24th Hoogeschool Zeeland 2022"]
[Site "Vlissingen"]
[Date "2022.08.12"]
[Round "8.7"]
[White "Leenhouts, Koen"]
[Black "Jeanne, Mickael"]
[Result "1-0"]
[ECO "E26"]
[WhiteElo "2442"]
[BlackElo "2145"]
[Annotator "TA"]
[PlyCount "65"]
[EventDate "2022.08.05"]
[EventType "swiss"]
[EventCountry "NED"]
[SourceTitle "playchess.com"]
[Source "ChessBase"]
[SourceQuality "1"]
[TimeControl "40/5400+30:1800+30"]

{[%evp 16,65,-6,-20,12,-7,32,31,79,31,0,19,67,57,157,125,181,189,341,333,356,357,375,359,360,257,388,377,512,505,505,513,644,620,584,354,509,485,423,389,608,512,471,489,779,756,950,937,1255,1236,29993,29986]} 1. d4 {[%emt 0:00:03]} Nf6 {[%emt 0:00:13]} 2. c4 {[%emt 0:00:10]} e6 {[%emt 0:00:05]} 3. Nc3 {[%emt 0:00:22]} Bb4 {[%emt 0:00:18]} 4. a3 {[%emt 0:00:22]} Bxc3+ {[%emt 0:00:34]} 5. bxc3 {[%emt 0:00:07]} c5 {[%emt 0:00:04]} 6. e3 {[%emt 0:00:13]} Nc6 {[%emt 0:02:21]} 7. Bd3 {[%emt 0:00:20]} d6 {[%emt 0:00:15]} 8. Ne2 {[%emt 0:00:23]} b6 {[%emt 0:01:07]} 9. O-O {[%emt 0:00:44]} Na5 {[%emt 0:01:16] E26: Nimzo-Indian: Sämisch: 5...c5 6 e3.} 10. e4 {[%emt 0:01:43]} Qc7 {[%emt 0:04:40]} 11. Bg5 {[%emt 0:03:29]} Nd7 {[%emt 0:01:03] [#]} (11... Ba6 $14) 12. Ng3 {[%emt 0:04:35] [#]} ({White should try} 12. Nf4 $1 $16) 12... f6 $146 {[%emt 0:15:17]} ({Predecessor:} 12... g6 13. Bh6 Ba6 14. f4 O-O-O 15. e5 Bb7 16. Qe2 Nb8 17. Qf2 cxd4 18. cxd4 dxe5 {0-1 (61) Rudakovsky,I-Lisitsin,G Moscow 1940}) 13. Be3 {[%emt 0:02:23]} g6 {[%emt 0:09:45] Against Qh5} (13... O-O $11 {deserves consideration.}) 14. Qg4 {[%emt 0:11:44]} Nf8 {[%emt 0:05:56] White now steadily converts the win.} (14... Qd8 $1 $14) 15. Qh4 $36 {[%emt 0:06:38][%mdl 2048] Keeping Black busy. White is more active.} Qf7 {[%emt 0:06:06] [#]} (15... Nd7 $16) 16. e5 $1 $18 {[%emt 0:01:52]} f5 {[%emt 0:03:47] Prevents Ne4.} (16... Bb7 {was worth a try.} 17. exf6 (17. Qxf6 Qxf6 18. exf6 Nd7 $16) 17... Nd7) 17. exd6 {[%emt 0:03:49]} Nd7 {[%emt 0:01:06]} 18. Bh6 {[%emt 0:01:48]} Nf6 {[%emt 0:03:29]} 19. Rfe1 {[%emt 0:03:17]} Bd7 {[%emt 0:00:22]} 20. h3 {[%emt 0:10:33]} Nb7 {[%emt 0:04:01]} (20... O-O-O $142 21. dxc5 bxc5) 21. Qf4 {[%emt 0:02:46]} O-O-O {[%emt 0:04:33]} 22. a4 {[%emt 0:00:36]} Bc6 {[%emt 0:02:06]} 23. d5 {[%emt 0:00:44]} Bd7 {[%emt 0:00:44]} 24. a5 {[%emt 0:05:27]} bxa5 {[%emt 0:02:52]} 25. Rab1 {[%emt 0:01:30] Threatens to win with dxe6.} e5 {[%emt 0:01:59]} (25... Rhe8 $142 26. dxe6 Bxe6) 26. Rxe5 {[%emt 0:01:56] Black must now prevent Re7.} Rde8 {[%emt 0:00:57] Prevents Re7.} 27. Bg5 {[%emt 0:06:04] This bishop pair is nice.} (27. Re7 Rxe7 28. dxe7 Qxe7 $18) 27... Rhf8 {[%emt 0:10:23]} (27... h6 $142) 28. Re2 {[%emt 0:02:13]} Rxe2 {[%emt 0:02:35]} 29. Nxe2 {[%emt 0:01:00]} ({Not} 29. Bxe2 Qe8 30. f3 Ng8 $18) 29... Re8 {[%emt 0:00:18]} (29... Kb8 $142 30. Qe3 Rc8) 30. Qc1 {[%emt 0:02:14] aiming for Qb2.} Nxd6 {[%emt 0:12:09]} 31. Qa3 {[%emt 0:01:23][%csl LRa5,LRc5]} Nfe4 {[%emt 0:01:11]} 32. Bxe4 {[%emt 0:00:15]} Nxe4 {[%emt 0:00:10]} 33. Qxa5 {[%emt 0:00:32] Weighted Error Value: White=0.22 (precise) /Black=0.94} 1-0

[Event "24th Hoogeschool Zeeland 2022"]
[Site "Vlissingen"]
[Date "2022.08.12"]
[Round "8.8"]
[White "Van Delft, Merijn"]
[Black "Honkoop, Gilian"]
[Result "1/2-1/2"]
[ECO "C95"]
[WhiteElo "2383"]
[BlackElo "2205"]
[Annotator "TA"]
[PlyCount "143"]
[EventDate "2022.08.05"]
[EventType "swiss"]
[EventCountry "NED"]
[SourceTitle "playchess.com"]
[Source "ChessBase"]
[SourceQuality "1"]
[TimeControl "40/5400+30:1800+30"]

{[%evp 32,143,19,18,19,19,19,19,23,27,31,10,8,11,13,15,21,0,51,53,42,47,106,114,164,165,208,222,197,222,231,215,260,164,171,99,106,109,105,92,102,66,66,66,66,66,66,66,66,66,66,66,61,54,54,54,54,54,54,54,81,88,100,100,352,385,481,480,471,0,0,0,0,0,0,0,0,0,58,58,58,58,58,58,58,58,117,58,287,196,179,11,3,20,45,0,55,0,0,0,0,0,0,0,0,0,0,0,0,0,0,0,0,0]} 1. e4 {[%emt 0:00:05]} e5 {[%emt 0:00:02]} 2. Nf3 {[%emt 0:00:13]} Nc6 {[%emt 0:00:02]} 3. Bb5 {[%emt 0:00:07]} a6 {[%emt 0:00:02]} 4. Ba4 {[%emt 0:00:06]} Nf6 {[%emt 0:00:03]} 5. O-O {[%emt 0:00:08]} Be7 {[%emt 0:00:03]} 6. Re1 {[%emt 0:00:10]} b5 {[%emt 0:00:03]} 7. Bb3 {[%emt 0:00:04]} d6 {[%emt 0:00:05]} 8. c3 {[%emt 0:00:09]} O-O {[%emt 0:00:05]} 9. h3 {[%emt 0:00:07]} Nb8 {[%emt 0:00:03]} 10. d4 {[%emt 0:00:13]} Nbd7 {[%emt 0:00:04]} 11. Nbd2 {[%emt 0:00:18]} c5 {[%emt 0:00:06]} 12. Nf1 {[%emt 0:00:53]} Re8 {[%emt 0:00:15]} 13. Ng3 {[%emt 0:01:13]} Bf8 {[%emt 0:00:04]} 14. a4 {[%emt 0:00:27]} Bb7 {[%emt 0:00:14]} 15. d5 {[%emt 0:00:26]} c4 {[%emt 0:00:04]} 16. Bc2 {[%emt 0:00:08]} g6 {[%emt 0:00:05]} 17. Bg5 {[%emt 0:00:50]} Nc5 {[%emt 0:00:45] C95: Closed Ruy Lopez: Breyer Variation with 10 d4.} 18. Qd2 {[%emt 0:08:59]} Bg7 {[%emt 0:02:07]} 19. Ra3 {[%emt 0:04:10]} Qc7 {[%emt 0:02:17]} 20. Rea1 {[%emt 0:08:09]} Reb8 {[%emt 0:07:14]} 21. Nh2 {[%emt 0:10:36] [#]} Bc8 $146 {[%emt 0:02:24]} ({Predecessor:} 21... h5 22. axb5 axb5 23. Qd1 Rxa3 24. Rxa3 Qc8 25. Ra5 Ba6 26. Nf3 Nfd7 27. Ne2 Bf6 {½-½ (41) Bredenhof,B (2217)-Bennett,C (2349) ICCF email 2015}) 22. axb5 {[%emt 0:12:37]} Rxb5 {[%emt 0:00:45]} 23. R3a2 {[%emt 0:00:34]} Rab8 {[%emt 0:08:25]} 24. Qc1 {[%emt 0:04:06]} h5 {[%emt 0:19:00]} (24... Nd3 $11 25. Bxd3 cxd3) 25. Nf3 $14 {[%emt 0:01:39]} Nh7 {[%emt 0:03:34]} 26. Be3 {[%emt 0:00:51]} Qe7 {[%emt 0:00:56]} ({Better is} 26... Nb3 $14 27. Bxb3 Rxb3) 27. Nd2 $16 {[%emt 0:11:01]} h4 {[%emt 0:06:31]} (27... Nb3 $16 {was necessary.} 28. Bxb3 cxb3) 28. Ngf1 $18 {[%emt 0:03:06]} Nb3 {[%emt 0:03:36]} 29. Bxb3 {[%emt 0:00:28]} cxb3 {[%emt 0:00:06]} 30. Ra4 {[%emt 0:05:42]} f5 {[%emt 0:13:35]} 31. f3 {[%emt 0:00:12]} Bf6 {[%emt 0:09:10]} 32. Nh2 {[%emt 0:03:01]} Bg5 {[%emt 0:01:03]} 33. Ndf1 {[%emt 0:01:06]} (33. Qe1 $18) 33... Bxe3+ $16 {[%emt 0:03:48]} 34. Qxe3 {[%emt 0:00:25]} f4 {[%emt 0:00:48]} 35. Qf2 {[%emt 0:01:06]} Nf8 {[%emt 0:00:19]} 36. Nd2 {[%emt 0:09:01]} Nd7 $1 {[%emt 0:00:38]} 37. Nc4 {[%emt 0:00:58]} Nc5 {[%emt 0:01:25]} 38. R4a3 {[%emt 0:02:30]} g5 {[%emt 0:00:45]} 39. Kh1 {[%emt 0:01:47]} Qc7 {[%emt 0:01:19]} 40. Na5 {[%emt 0:00:58]} Bd7 {[%emt 0:03:56]} 41. Qe2 {[%emt 0:33:43]} Kg7 {[%emt 0:34:23]} 42. Nf1 {[%emt 0:01:36][%cal Bh2f1,Bf1d2,Bd2c4][%mdl 32]} Kf8 {[%emt 0:02:11]} 43. Kh2 {[%emt 0:00:41]} Kg7 {[%emt 0:00:09]} 44. Nd2 {[%emt 0:02:26]} Kf8 {[%emt 0:00:24]} 45. Ndc4 {[%emt 0:01:34] Pair of Knights!} Kg7 {[%emt 0:02:36]} 46. Rd1 {[%emt 0:00:00]} Kf8 {[%emt 0:00:00]} 47. Nc6 {[%emt 0:00:00]} Bxc6 $4 {[%emt 0:00:00][%mdl 8192]} (47... Ra8 $16 {is a better defense.}) 48. dxc6 $18 {[%emt 0:00:00]} Rd8 {[%emt 0:00:00]} 49. Rd5 $1 {[%emt 0:00:00]} Ke7 {[%emt 0:00:00] [#]} 50. Ra1 $2 {[%emt 0:00:00]} (50. Rxa6 $3 $18 {[%mdl 512]} Rbb8 51. Ra5) 50... Qxc6 $11 {[%emt 0:00:00]} 51. Rad1 {[%emt 0:00:00][%cal Oc4e5] Threatens to win with Nxe5!} Nb7 {[%emt 0:00:00]} 52. Qd3 {[%emt 0:00:00][%cal Oc4e5] Strongly threatening Nxe5!} Qc7 {[%emt 0:00:23]} 53. Rxb5 {[%emt 0:00:00] The board is on fire.} axb5 {[%emt 0:00:06]} 54. Na3 {[%emt 0:00:00]} Nc5 {[%emt 0:00:38]} (54... Qc6 $11) 55. Qxb5 $14 {[%emt 0:00:00]} Qb7 {[%emt 0:00:19]} 56. Qe2 {[%emt 0:00:00]} Qa6 {[%emt 0:00:10]} 57. c4 {[%emt 0:00:00]} Qa4 {[%emt 0:05:18]} 58. Rd5 {[%emt 0:00:00]} Qb4 {[%emt 0:01:15]} (58... Qc6 $14) 59. Qd1 {[%emt 0:00:00]} ({White should try} 59. Nb5 $16) 59... Ne6 $2 {[%emt 0:00:58]} (59... Qb8 $14) 60. Rb5 {[%emt 0:00:00]} Qa4 {[%emt 0:00:10] [#]} 61. Qxb3 $2 {[%emt 0:01:00]} (61. Qd5 $1 $18) 61... Qxb3 $11 {[%emt 0:00:05]} 62. Rxb3 $18 {[%emt 0:00:08][%mdl 4096] Endgame KRN-KRN} Nc5 {[%emt 0:00:11] Against Rb7+} 63. Rb6 {[%emt 0:00:53]} Rd7 {[%emt 0:00:32]} ({Black should play} 63... Ra8 $11) 64. Kg1 {[%emt 0:00:53]} (64. Nb5 $14) 64... Ra7 $11 {[%emt 0:00:35] The position is equal.} 65. Nb5 {[%emt 0:05:50][%csl LRa7,LRd6]} Ra1+ {[%emt 0:00:04]} 66. Kf2 {[%emt 0:00:06]} Nd3+ {[%emt 0:01:35]} 67. Ke2 {[%emt 0:00:01]} Nxb2 {[%emt 0:00:05]} 68. Nxd6 {[%emt 0:00:35] aiming for Nf5+.} Ra2 {[%emt 0:00:31]} 69. Kf1 {[%emt 0:02:50]} Ra1+ {[%emt 0:00:55]} 70. Kf2 {[%emt 0:00:28] Nf5+ is the strong threat.} Ra2 {[%emt 0:00:04]} 71. Kf1 {[%emt 0:01:49]} Ra1+ {[%emt 0:00:03]} 72. Kf2 {[%emt 0:00:07] Weighted Error Value: White=0.23 (precise) /Black=0.33} 1/2-1/2

[Event "24th Hoogeschool Zeeland 2022"]
[Site "Vlissingen"]
[Date "2022.08.12"]
[Round "8.9"]
[White "Shakhverdian, William"]
[Black "Pham, Khoi"]
[Result "0-1"]
[ECO "D30"]
[WhiteElo "2040"]
[BlackElo "2317"]
[Annotator "TA"]
[PlyCount "54"]
[EventDate "2022.08.05"]
[EventType "swiss"]
[EventCountry "NED"]
[SourceTitle "playchess.com"]
[Source "ChessBase"]
[SourceQuality "1"]
[TimeControl "40/5400+30:1800+30"]

{[%evp 9,54,15,29,29,35,33,39,15,22,13,22,13,6,7,4,8,18,0,0,-16,46,6,0,-163,-161,-148,-156,-307,-315,-329,-325,-320,-321,-317,-279,-322,-305,-383,-402,-401,-393,-530,-520,-1033,-1031,-1510,-1446]} 1. d4 {[%emt 0:00:01]} Nf6 {[%emt 0:02:12]} 2. c4 {[%emt 0:00:22]} e6 {[%emt 0:00:25]} 3. Nf3 {[%emt 0:00:19]} d5 {[%emt 0:00:06]} 4. e3 {[%emt 0:01:22]} c6 {[%emt 0:00:56]} 5. b3 {[%emt 0:00:22]} Ne4 {[%emt 0:00:49]} 6. Bd3 {[%emt 0:01:36] D30: Queen's Gambit Declined: Systems without Nc3.} Bb4+ {[%emt 0:01:51] 6...Bd6 is vanishing.} 7. Nbd2 {[%emt 0:01:14]} Nd7 {[%emt 0:03:03]} 8. O-O {[%emt 0:04:04] White is slightly better.} f5 {[%emt 0:00:42]} 9. Bb2 {[%emt 0:06:43]} Qf6 $1 {[%emt 0:00:30][%mdl 4] is now more promising than 9...0-0.} 10. Qc1 {[%emt 0:05:19]} O-O {[%emt 0:12:48]} 11. Ba3 {[%emt 0:11:54]} Bxa3 {[%emt 0:01:25]} 12. Qxa3 {[%emt 0:00:07]} g5 {[%emt 0:00:21][%cal Bg7g5,Bg5g4][%mdl 32] [#]} 13. Qb2 $146 {[%emt 0:06:56]} ({Predecessor:} 13. Rad1 g4 14. Bxe4 fxe4 15. Ne1 e5 16. Nc2 exd4 17. exd4 Qg5 18. Ne3 Nf6 19. Qd6 {1-0 (38) Van de Griendt,J (2352)-Kazarian,A (2259) Netherlands 2016}) 13... g4 {[%emt 0:04:47]} 14. Ne5 {[%emt 0:05:37]} Qh4 {[%emt 0:25:41]} ({Better is} 14... Nxd2 $11 15. Nxd7 Nf3+ 16. gxf3 Bxd7) 15. g3 {[%emt 0:30:01]} (15. f4 $5 {[%cal Rd3e4]}) 15... Qh3 {[%emt 0:03:10]} 16. Rfd1 $2 {[%emt 0:01:42] [#]} (16. Rfc1 $11 {and White has nothing to worry.}) 16... Nxf2 $1 $19 {[%emt 0:07:41][%cal Be4f2,Bf2d3,Bd3c5,Bc5d7,Bd7b6,Bb6d7][%mdl 544] Strongly threatening ...Nxe5.} 17. Rf1 {[%emt 0:08:11]} Nxe5 {[%emt 0:03:18] Dancing on a razor blade.} 18. dxe5 {[%emt 0:00:06]} (18. Be2 $17 {is a better defense.}) 18... Nxd3 {[%emt 0:00:17]} 19. Qc3 {[%emt 0:00:10]} dxc4 {[%emt 0:08:23]} 20. Nxc4 {[%emt 0:03:05] [#]} Nc5 {[%emt 0:00:46]} ({Not} 20... Rd8 21. Rad1 $11) 21. Nd6 {[%emt 0:00:20]} Nd7 {[%emt 0:03:02]} 22. Rad1 {[%emt 0:01:59] [#]} Nb6 {[%emt 0:01:05]} 23. Qc5 {[%emt 0:01:15]} Qh6 {[%emt 0:03:14] Hoping for ...Nd7.} 24. e4 {[%emt 0:00:28]} Nd7 {[%emt 0:02:57]} 25. Qd4 {[%emt 0:03:15][%cal Re4f5]} c5 {[%emt 0:01:01] Black is clearly winning.} 26. Nxf5 {[%emt 0:03:38]} (26. Qc3 $142 Qg7 27. exf5 Nxe5 28. f6 Rxf6 29. Rxf6 Qxf6 30. Ne4 Nf3+ 31. Kf2 Qxc3 32. Rd8+ Kg7 33. Nxc3) 26... Rxf5 {[%emt 0:01:14]} 27. Qd6 {[%emt 0:00:22]} Qe3+ {[%emt 0:00:37] Weighted Error Value: White=0.80/Black=0.09 (flawless)} 0-1

[Event "24th Hoogeschool Zeeland 2022"]
[Site "Vlissingen"]
[Date "2022.08.12"]
[Round "8.11"]
[White "Tiggelman, Rene"]
[Black "Klepke, Ricardo"]
[Result "0-1"]
[ECO "E94"]
[WhiteElo "2165"]
[BlackElo "2293"]
[Annotator "TA"]
[PlyCount "84"]
[EventDate "2022.08.05"]
[EventType "swiss"]
[EventCountry "NED"]
[SourceTitle "playchess.com"]
[Source "ChessBase"]
[SourceQuality "1"]
[TimeControl "40/5400+30:1800+30"]

{[%evp 16,84,50,12,17,8,15,10,18,18,18,20,20,12,40,28,112,108,179,131,133,130,137,106,104,84,109,43,89,89,66,41,109,67,66,41,41,29,35,-111,-101,-114,-101,-162,-174,-220,-199,-276,-299,-281,-256,-291,-277,-293,-287,-429,-418,-442,-425,-484,-420,-524,-518,-516,-504,-586,-576,-834,-663,-636,-611]} 1. Nf3 {[%emt 0:00:06]} Nf6 {[%emt 0:00:07]} 2. c4 {[%emt 0:00:08]} g6 {[%emt 0:00:09]} 3. Nc3 {[%emt 0:00:15]} Bg7 {[%emt 0:00:11]} 4. d4 {[%emt 0:00:09]} O-O {[%emt 0:00:21]} 5. e4 {[%emt 0:00:07]} d6 {[%emt 0:00:06]} 6. Be2 {[%emt 0:00:11]} e5 {[%emt 0:00:10]} 7. O-O {[%emt 0:00:10]} Na6 {[%emt 0:00:09]} 8. Re1 {[%emt 0:07:30]} c6 {[%emt 0:00:41]} 9. h3 {[%emt 0:02:13]} exd4 {[%emt 0:04:59] E94: King's Indian: Classical: 6 Be2 e5 7 0-0: Various Black 7th moves.} 10. Nxd4 {[%emt 0:00:12]} ({Of course not} 10. Qxd4 Nd5 $1 11. e5 dxe5 12. Nxe5 Ndb4 13. Qxd8 Rxd8 $17) 10... Nc5 {[%emt 0:00:20]} 11. Bf3 {[%emt 0:02:18]} ({But not} 11. Bg5 h6 12. Bxf6 Qxf6 $15) (11. Bd3 {feels hotter.} Ng4 12. Bf1 Qf6 13. hxg4 Qxd4 14. Be3) 11... Nfd7 {[%emt 0:13:31] The position is equal.} 12. Be3 {[%emt 0:04:54]} a5 {[%emt 0:03:34]} 13. Qc2 {[%emt 0:04:02]} Re8 {[%emt 0:09:06]} 14. Rad1 {[%emt 0:04:12] [#]} Qf6 $146 {[%emt 0:05:28]} ({Predecessor:} 14... Ne5 15. Be2 Qh4 16. f4 Ned7 17. Bf3 Nf6 18. Qf2 Qxf2+ 19. Bxf2 Nfd7 20. g4 h6 {0-1 (65) Manukyan,S (2253)-Maze,S (2557) Chess.com INT 2020}) 15. Qc1 {[%emt 0:07:11] Black must now prevent Bg5.} Ne6 {[%emt 0:04:23] [#] Prevents Bg5.} (15... Qe7 $11) 16. Bg4 $1 $16 {[%emt 0:13:58]} h5 {[%emt 0:10:51]} (16... Nxd4 $16 17. Bxd4 Qe7) 17. Nxe6 {[%emt 0:09:01]} ({White should play} 17. Bxe6 $18 fxe6 18. Nf3) 17... fxe6 {[%emt 0:00:40]} 18. Be2 {[%emt 0:00:09]} e5 {[%emt 0:01:55]} 19. Qd2 {[%emt 0:04:28]} Bf8 {[%emt 0:01:57]} 20. Rf1 {[%emt 0:01:39]} Qg7 {[%emt 0:04:50]} 21. a3 {[%emt 0:06:01]} ({White should try} 21. Na4 $16) 21... Nc5 {[%emt 0:06:46]} (21... a4 $1 $14) 22. f4 {[%emt 0:01:23]} exf4 {[%emt 0:00:41]} 23. Rxf4 {[%emt 0:00:24]} Nd7 {[%emt 0:02:25]} (23... Be6 $14) 24. Rdf1 {[%emt 0:02:06][%cal Oc3d5] And now Nd5! would win.} Ne5 {[%emt 0:00:20]} 25. Bd4 {[%emt 0:09:04] Strongly threatening Na4.} (25. c5 $5) 25... Be7 {[%emt 0:10:05]} 26. c5 {[%emt 0:08:00]} dxc5 {[%emt 0:00:58] [#]} 27. Bxe5 {[%emt 0:02:33]} (27. Rf7 $1 $14 Nf3+ 28. R1xf3 Qxd4+ 29. Qxd4 cxd4 30. Bc4) 27... Qxe5 $17 {[%emt 0:00:09]} 28. Bc4+ {[%emt 0:01:43]} Be6 {[%emt 0:01:24]} 29. Bxe6+ {[%emt 0:01:12]} (29. Nd5 $17 cxd5 30. exd5) 29... Qxe6 $19 {[%emt 0:00:07]} 30. Qe2 {[%emt 0:01:34]} (30. R4f3 {might work better.}) 30... Rf8 {[%emt 0:00:39]} 31. g4 {[%emt 0:00:11]} (31. e5 {was called for.}) 31... Rxf4 {[%emt 0:02:10]} 32. Rxf4 {[%emt 0:00:06]} Bd6 {[%emt 0:00:12]} 33. Rf2 {[%emt 0:00:59]} Be5 {[%emt 0:01:50]} 34. Kg2 {[%emt 0:00:01]} hxg4 {[%emt 0:01:10]} 35. hxg4 {[%emt 0:00:11]} (35. Qxg4 $142 Qxg4+ 36. hxg4) 35... Kg7 {[%emt 0:00:31]} 36. Qf3 {[%emt 0:01:00]} Rh8 {[%emt 0:00:42]} 37. Ne2 {[%emt 0:00:44]} Rh2+ {[%emt 0:00:59]} 38. Kg1 {[%emt 0:00:42] Qf8+ is the strong threat.} Rxf2 {[%emt 0:00:41] Black is clearly winning.} 39. Kxf2 {[%emt 0:00:09]} Bxb2 {[%emt 0:00:17]} 40. Nf4 {[%emt 0:00:50]} Qf7 {[%emt 0:04:28]} 41. a4 {[%emt 0:32:13]} Be5 {[%emt 0:30:53]} 42. Nd3 {[%emt 0:00:09]} Bd4+ {[%emt 0:00:11] Never resign too early!  Weighted Error Value: White=0.41/Black=0.18 (very precise)} 0-1

[Event "24th Hoogeschool Zeeland 2022"]
[Site "Vlissingen"]
[Date "2022.08.12"]
[Round "8.13"]
[White "Duson, Robin"]
[Black "Grutter, Tim"]
[Result "0-1"]
[ECO "E73"]
[WhiteElo "2027"]
[BlackElo "2246"]
[Annotator "TA"]
[PlyCount "102"]
[EventDate "2022.08.05"]
[EventType "swiss"]
[EventCountry "NED"]
[SourceTitle "playchess.com"]
[Source "ChessBase"]
[SourceQuality "1"]
[TimeControl "40/5400+30:1800+30"]

{[%evp 12,102,43,34,34,25,40,35,35,20,31,12,15,6,32,-4,22,38,37,29,116,112,123,119,185,180,216,216,210,190,204,153,164,128,120,143,264,256,312,202,305,306,353,229,205,204,352,148,182,160,154,148,535,108,108,99,112,106,106,109,122,77,233,116,122,90,104,0,67,-54,-34,-54,-64,-64,0,-67,-63,-845,-833,-780,-814,-793,-772,-706,-657,-4710,-2073,-6070,-5228,-5222,-5214,-5214,-5214]} 1. d4 {[%emt 0:00:09]} Nf6 {[%emt 0:00:03]} 2. c4 {[%emt 0:00:34]} g6 {[%emt 0:00:04]} 3. Nc3 {[%emt 0:00:08]} Bg7 {[%emt 0:00:05]} 4. e4 {[%emt 0:00:05]} d6 {[%emt 0:00:03]} 5. Be2 {[%emt 0:00:20]} O-O {[%emt 0:00:18]} 6. Be3 {[%emt 0:00:33]} Nc6 {[%emt 0:00:18][%cal Bb8c6,Bc6e5,Be5g4][%mdl 32]} 7. d5 {[%emt 0:01:07]} Ne5 {[%emt 0:00:05] E73: King's Indian: Averbakh Variation without 6...c5.} 8. f4 {[%emt 0:00:49]} Neg4 {[%emt 0:00:04]} 9. Bd2 {[%emt 0:00:40]} Nh6 $1 {[%emt 0:00:05] White is slightly better.} 10. Nf3 {[%emt 0:01:20]} c6 {[%emt 0:00:07]} 11. a4 {[%emt 0:02:00]} e6 {[%emt 0:00:07]} 12. dxe6 {[%emt 0:00:51]} Bxe6 {[%emt 0:01:49]} 13. Ng5 {[%emt 0:01:52] [#]} d5 $146 {[%emt 0:11:08]} ({Predecessor:} 13... Re8 14. O-O Bg4 15. Bxg4 Qb6+ 16. Kh1 Nhxg4 17. Qe2 h6 18. Nxf7 Kxf7 19. h3 Qd4 20. hxg4 Nxe4 21. Nxe4 Qxe4 {½-½ (49) Riazantsev,A (2638)-Makarian,R (2441) Sochi 2020}) 14. cxd5 {[%emt 0:06:17]} cxd5 {[%emt 0:00:49]} 15. e5 {[%emt 0:01:14]} (15. Nxe6 fxe6 16. e5 Nd7 $11) 15... d4 {[%emt 0:14:42]} (15... Ne4 $11 {remains equal.}) 16. Nb5 $16 {[%emt 0:05:12]} (16. exf6 $6 dxc3 17. Bxc3 Bxf6 $11) 16... d3 {[%emt 0:10:58]} 17. Bf3 {[%emt 0:06:23]} Nd5 {[%emt 0:01:35]} (17... Nd7 $16) 18. Ra3 $1 $18 {[%emt 0:03:02]} a6 {[%emt 0:10:24]} 19. Nd6 {[%emt 0:02:20]} Qb6 {[%emt 0:03:17]} 20. Rxd3 {[%emt 0:04:30]} Nb4 {[%emt 0:05:34]} 21. Ra3 {[%emt 0:09:41]} Qd4 {[%emt 0:12:32]} 22. Bxb4 {[%emt 0:06:36]} Qxb4+ {[%emt 0:00:44]} 23. Qd2 {[%emt 0:00:12]} Qb6 {[%emt 0:00:57]} (23... Qxd2+ $16 {is a better defense.} 24. Kxd2 Nf5) 24. a5 {[%emt 0:00:54]} (24. Bxb7 $6 Rab8 $18) 24... Qa7 {[%emt 0:01:21]} 25. Qf2 {[%emt 0:03:12]} (25. Bxb7 Rab8 $16) 25... Qb8 {[%emt 0:00:51]} (25... Qxf2+ $142 26. Kxf2 Rab8) 26. O-O {[%emt 0:03:06]} (26. Bxb7 $6 Ra7 $18) 26... Nf5 {[%emt 0:02:05]} 27. Rd1 {[%emt 0:03:53]} (27. Bxb7 Ra7 $16) 27... Nxd6 {[%emt 0:03:27]} 28. Rxd6 {[%emt 0:00:27]} Rc8 {[%emt 0:01:36]} (28... Qc7 $142 29. Ra1 (29. Nxe6 fxe6 30. Qe3 g5 $16) 29... Bf5) 29. Nxe6 {[%emt 0:03:39]} (29. Qh4 $18 {and White stays clearly on top.} Rc1+ 30. Kf2 (30. Rd1 Rxd1+ 31. Bxd1 Qd8 $11)) 29... fxe6 {[%emt 0:00:27]} 30. Rd7 {[%emt 0:09:12]} Rc1+ {[%emt 0:00:58]} 31. Bd1 {[%emt 0:01:18]} Bf8 $2 {[%emt 0:01:30][%mdl 8192]} (31... Qc8 $16 {is a better chance.} 32. Rad3 Rc7 33. Rxc7 Qxc7) 32. Rc3 $2 {[%emt 0:01:57]} (32. Qh4 $1 $18 {[%csl Gd7][%cal Rh4h7]} Bg7 33. Rad3) 32... Rxc3 {[%emt 0:00:44]} 33. bxc3 {[%emt 0:00:07] aiming for Qh4.} Qc8 {[%emt 0:00:28][%csl LRc3,LRd7]} 34. Qd2 {[%emt 0:00:52]} Qc5+ {[%emt 0:00:19]} 35. Kh1 {[%emt 0:00:43]} Qxa5 {[%emt 0:01:06]} 36. h3 {[%emt 0:03:21]} ({Not} 36. Rxb7 $2 Rd8 37. Qe2 (37. Rd7 $2 Qb5 $19) 37... Qa1 $19) 36... Qb6 $2 {[%emt 0:01:39]} (36... Qb5 $16) 37. Bf3 {[%emt 0:07:21]} (37. f5 $1 $18 {[%cal Rf5g6] is the precise move to win. Threatening mate with fxg6.} Qb1 38. fxe6) 37... Rb8 {[%emt 0:01:40]} 38. Be4 {[%emt 0:02:53]} Qb5 {[%emt 0:01:47]} 39. Rc7 {[%emt 0:03:36]} (39. Kh2 $16) 39... Bc5 {[%emt 0:02:23]} ({Black should play} 39... Bh6 $1 $11 40. Qf2 Rf8) 40. c4 {[%emt 0:05:15]} (40. Kh2 $14) 40... Qxc4 $15 {[%emt 0:02:35] Strongly threatening ...Qf1+.} 41. Bxb7 {[%emt 0:09:26]} Qf1+ {[%emt 0:09:51]} 42. Kh2 {[%emt 0:00:17]} Qg1+ {[%emt 0:00:57]} 43. Kg3 {[%emt 0:00:10]} Be3 {[%emt 0:00:21]} 44. Qa2 {[%emt 0:04:18][%mdl 8192] [#]} (44. Qe2 $15) 44... Bxf4+ $1 $19 {[%emt 0:03:29][%mdl 512] Black is clearly winning.} 45. Kg4 {[%emt 0:06:23] [#]} Qd1+ $1 {[%emt 0:05:51]} 46. Bf3 {[%emt 0:01:32] [#]} h5+ $1 {[%emt 0:00:16]} ({Worse is} 46... Qd8 47. Qxe6+ Kh8 48. Re7 $11) 47. Kxf4 {[%emt 0:00:12]} Qd4+ {[%emt 0:00:08][%mdl 64] Deflection} 48. Kg5 {[%emt 0:01:24]} Qxe5+ {[%emt 0:00:21]} 49. Kxg6 {[%emt 0:00:20]} Qf5+ {[%emt 0:00:17]} 50. Kh6 {[%emt 0:00:22]} Qf6+ {[%emt 0:00:07]} 51. Kxh5 {[%emt 0:00:18]} Rb5+ {[%emt 0:00:05] Quite a comeback for Black.  Weighted Error Value: White=0.82/Black=0.39} 0-1